fUST/lending_fUST_20250503
["ID","MTS","AMOUNT","RATE_DAILY","PERIOD"]
[359722356,1746280233602,-160.0,0.00021917,2]
[359722357,1746280233611,-151.0,0.00021917,2]
[359722358,1746280233621,-500.0,0.00021917,2]
[359722359,1746280233631,-500.0,0.00021917,2]
[359722360,1746280233641,-500.0,0.00021917,2]
[359722361,1746280233651,-500.0,0.00021917,2]
[359722362,1746280233661,-500.0,0.00021917,2]
[359722363,1746280233671,-500.0,0.00021917,2]
[359722364,1746280233681,-500.0,0.00021917,2]
[359722365,1746280233691,-500.0,0.00021917,2]
[359722366,1746280233700,-500.0,0.00021917,2]
[359722367,1746280233711,-500.0,0.00021917,2]
[359722368,1746280233721,-500.0,0.00021917,2]
[359722369,1746280233734,-500.0,0.00021917,2]
[359722370,1746280233744,-500.0,0.00021917,2]
[359722371,1746280233754,-500.0,0.00021917,2]
[359722372,1746280233764,-500.0,0.00021918,2]
[359722373,1746280233775,-500.0,0.00021918,2]
[359722374,1746280233785,-492.63819882,0.00021918,2]
[359722375,1746280233795,-3740.73247601,0.00021969,6]
[359722376,1746280233807,-738.41623517,0.00022,2]
[359722377,1746280233816,-26094.54440971,0.00022,7]
[359722378,1746280233826,-151.0,0.00022,7]
[359722379,1746280233836,-151.0,0.00022,7]
[359722380,1746280234016,-841.47485993,0.00022,7]
[359722381,1746280234026,-313.6679601,0.00022,7]
[359722382,1746280234036,-400.0,0.00022107,2]
[359722383,1746280234046,-400.0,0.00022108,2]
[359722384,1746280234057,-463.52,0.00022109,2]
[359722385,1746280234068,-547.54,0.00022109,2]
[359722386,1746280234078,-500.0,0.00022146,2]
[359722387,1746280234087,-400.0,0.00022381,2]
[359722388,1746280234097,-400.0,0.00022382,2]
[359722389,1746280234107,-463.52,0.00022383,2]
[359722390,1746280234116,-547.54,0.00022383,2]
[359722391,1746280234126,-500.0,0.0002242,2]
[359722392,1746280234135,-220.02813937,0.000225,2]
[359722932,1746280242901,-160.0,0.00020687,2]
[359722934,1746280242911,-279.97185963,0.000225,2]
[359722936,1746280242922,-400.0,0.00022655,2]
[359722938,1746280242931,-400.0,0.00022656,2]
[359722940,1746280242941,-463.52,0.00022657,2]
[359722942,1746280242950,-547.54,0.00022657,2]
[359722944,1746280242959,-3740.73247601,0.00022659,7]
[359722946,1746280242968,-500.0,0.00022694,2]
[359722948,1746280242978,-400.0,0.00022929,2]
[359722950,1746280242988,-400.0,0.0002293,2]
[359722952,1746280242998,-463.52,0.00022931,2]
[359722954,1746280243008,-547.54,0.00022931,2]
[359722956,1746280243018,-500.0,0.00022968,2]
[359722959,1746280243027,-155.0,0.000231,2]
[359722962,1746280243036,-545.0,0.00023188,2]
[359722965,1746280243045,-707.0,0.00023188,2]
[359722967,1746280243054,-965.961,0.00023188,2]
[359722969,1746280243064,-400.0,0.00023203,2]
[359722971,1746280243073,-400.0,0.00023204,2]
[359722973,1746280243083,-463.52,0.00023205,2]
[359722975,1746280243092,-547.54,0.00023205,2]
[359722977,1746280243101,-500.0,0.00023242,2]
[359722979,1746280243110,-160.0,0.00023287,2]
[359722981,1746280243119,-1000.0,0.000233,2]
[359722983,1746280243129,-3740.73247601,0.00023348,9]
[359722985,1746280243138,-300.0,0.00023359,2]
[359722987,1746280243148,-400.0,0.00023476,2]
[359722989,1746280243157,-400.0,0.00023478,2]
[359722991,1746280243168,-463.52,0.00023479,2]
[359722993,1746280243177,-547.54,0.00023479,2]
[359722995,1746280243187,-500.0,0.00023516,2]
[359722997,1746280243196,-269.48774681,0.0002375,2]
[359723703,1746280623607,16441.5411206,0.00017693,2]
[359723705,1746280677587,1704.8178183,0.00017809,2]
[359723736,1746280821712,10000.0,0.00017693,2]
[359723744,1746281211662,237.57999998,0.00018,2]
[359723746,1746281242138,-856.53539313,0.00018,2]
[359723747,1746281250090,-8599.46460687,0.00018,2]
[359723748,1746281250111,-247.6634563,0.00018103,2]
[359723749,1746281250132,-300.0,0.0001827,2]
[359723750,1746281250153,-494.32363952,0.00018271,2]
[359723751,1746281250175,-400.0,0.00018271,2]
[359723752,1746281250196,-485.79,0.00018271,2]
[359723753,1746281250218,-400.0,0.00018271,2]
[359723754,1746281250238,-400.0,0.00018271,2]
[359723755,1746281250257,-400.0,0.00018271,2]
[359723756,1746281250277,-221.90201425,0.00018271,2]
[359723759,1746281310397,212.19907,0.00017561,2]
[359723762,1746281341657,6551.0,0.00017299,2]
[359723765,1746281349154,-619.62261934,0.00018208,2]
[359723766,1746281349182,-178.09798575,0.00018271,2]
[359723767,1746281349208,-400.0,0.00018271,2]
[359723768,1746281349232,-400.0,0.00018271,2]
[359723769,1746281349260,-400.0,0.00018271,2]
[359723770,1746281349283,-400.0,0.00018271,2]
[359723771,1746281349306,-400.0,0.00018271,2]
[359723772,1746281349327,-400.0,0.00018272,2]
[359723773,1746281349348,-500.0,0.00018304,2]
[359723774,1746281349377,-500.0,0.00018304,2]
[359723775,1746281349399,-500.0,0.00018304,2]
[359723776,1746281349421,-500.0,0.00018304,2]
[359723777,1746281349449,-273.16083159,0.00018304,2]
[359723778,1746281349469,-500.0,0.00018304,2]
[359723779,1746281349490,-500.0,0.00018304,2]
[359723780,1746281349511,-500.0,0.00018304,2]
[359723781,1746281349532,-500.0,0.00018304,2]
[359723782,1746281349553,-311.320359,0.00018304,2]
[359723783,1746281349579,-500.0,0.00018304,2]
[359723784,1746281349600,-500.0,0.00018304,2]
[359723785,1746281349628,-500.0,0.00018304,2]
[359723786,1746281349649,-500.0,0.00018304,2]
[359723787,1746281349676,-500.0,0.00018304,2]
[359723788,1746281349697,-500.0,0.00018304,2]
[359723789,1746281349718,-500.0,0.00018304,2]
[359723790,1746281349738,-155.71856284,0.00018304,2]
[359723791,1746281349757,-16099.77047246,0.00018305,2]
[359723792,1746281349778,-842.74,0.00018307,2]
[359723793,1746281349798,-400.0,0.00018307,2]
[359723794,1746281349818,-400.0,0.00018308,2]
[359723795,1746281349838,-400.0,0.00018308,2]
[359723796,1746281349858,-400.0,0.00018308,2]
[359723797,1746281349880,-400.0,0.00018308,2]
[359723798,1746281349901,-400.0,0.00018308,2]
[359723799,1746281349922,-400.0,0.00018308,2]
[359723800,1746281349942,-400.0,0.00018308,2]
[359723801,1746281349964,-510.36,0.00018308,2]
[359723802,1746281349985,-400.0,0.00018308,2]
[359723803,1746281350007,-400.0,0.00018308,2]
[359723804,1746281350030,-400.0,0.00018308,2]
[359723805,1746281350052,-487.62,0.00018308,2]
[359723806,1746281350074,-400.0,0.00018308,2]
[359723807,1746281350095,-400.0,0.00018308,2]
[359723808,1746281350122,-476.17,0.00018308,2]
[359723809,1746281350144,-400.0,0.00018545,2]
[359723810,1746281350166,-400.0,0.00018545,2]
[359723811,1746281350188,-842.74,0.00018581,2]
[359723812,1746281350210,-419.94,0.00018581,2]
[359723813,1746281350231,-400.0,0.00018582,2]
[359723814,1746281350254,-400.0,0.00018582,2]
[359723815,1746281350276,-330.12,0.00018582,2]
[359723816,1746281350297,-1013.0323373,0.0001879,2]
[359723817,1746281350475,-400.0,0.00018819,2]
[359723818,1746281350497,-400.0,0.00018819,2]
[359723819,1746281350730,-749.12049811,0.00018855,2]
[359723820,1746281367241,-93.61950189,0.00018855,2]
[359723821,1746281367262,-462.92,0.00018856,2]
[359723822,1746281367283,-400.0,0.00018856,2]
[359723823,1746281367305,-219.46049811,0.00018984,2]
[359723847,1746281431900,-261.8,0.00018307,2]
[359723848,1746281431911,-400.0,0.00018308,2]
[359723849,1746281431921,-400.0,0.00018308,2]
[359723850,1746281431930,-400.0,0.00018582,2]
[359723851,1746281431939,-488.79,0.00018582,2]
[359723852,1746281431949,-469.91,0.00018856,2]
[359723853,1746281431958,-150.0,0.000189,2]
[359723854,1746281431968,-58.61293789,0.00018984,2]
[359723855,1746281431978,-400.0,0.00019093,2]
[359723856,1746281431987,-400.0,0.00019093,2]
[359723857,1746281431997,-842.74,0.00019129,2]
[359723858,1746281432006,-250.0,0.00019349,2]
[359723859,1746281432015,-400.0,0.00019367,2]
[359723860,1746281432025,-400.0,0.00019367,2]
[359723861,1746281432034,-842.74,0.00019403,2]
[359723862,1746281432043,-300.0,0.0001964,2]
[359723863,1746281432053,-400.0,0.00019641,2]
[359723865,1746281432062,-400.0,0.00019641,2]
[359723866,1746281432072,-842.74,0.00019677,2]
[359723867,1746281432081,-250.0,0.0001988,2]
[359723868,1746281432091,-300.0,0.00019899,2]
[359723869,1746281432100,-3016.36258366,0.000199,2]
[359723870,1746281432110,-237.33,0.00019915,2]
[359723871,1746281432119,-400.0,0.00019915,2]
[359723872,1746281432132,-842.74,0.00019951,2]
[359723873,1746281432141,-400.0,0.00020189,2]
[359723874,1746281432151,-842.74,0.00020225,2]
[359723875,1746281432160,-250.0,0.0002038,2]
[359723876,1746281432171,-400.0,0.00020463,2]
[359723877,1746281432180,-842.74,0.00020499,2]
[359723878,1746281432190,-3016.36258365,0.0002059,3]
[359723879,1746281432202,-207.44,0.00020737,2]
[359723880,1746281432211,-842.74,0.00020773,2]
[359723881,1746281432221,-500.0,0.00020782,2]
[359723882,1746281432231,-500.0,0.00020782,2]
[359723883,1746281432240,-500.0,0.00020867,2]
[359723884,1746281432249,-500.0,0.00020867,2]
[359723885,1746281432259,-500.0,0.00020867,2]
[359723886,1746281432268,-3000.0,0.00021,2]
[359723887,1746281432277,-1216.73,0.00021,2]
[359723888,1746281432286,-155.0,0.00021,2]
[359723889,1746281432296,-157.71,0.00021,2]
[359723890,1746281432305,-3000.0,0.0002101,2]
[359723891,1746281432315,-3000.0,0.0002102,2]
[359723892,1746281432324,-3000.0,0.0002103,2]
[359723893,1746281432333,-9.21557664,0.0002104,2]
[359723894,1746281432350,-2990.78442336,0.0002104,2]
[359723895,1746281432359,-842.74,0.00021047,2]
[359723896,1746281432369,-3000.0,0.0002105,2]
[359723897,1746281432379,-3000.0,0.0002106,2]
[359723898,1746281432390,-87.0137662,0.0002107,2]
[359723899,1746281432403,-753.07193284,0.0002107,2]
[359723900,1746281432415,-2159.91430096,0.0002107,2]
[359723901,1746281432423,-3000.0,0.0002108,2]
[359723902,1746281432433,-3000.0,0.0002109,2]
[359723903,1746281432442,-487.55854942,0.000211,2]
[359724167,1746281440313,-590.14670656,0.00020999,2]
[359724169,1746281440323,-500.0,0.00020999,2]
[359724171,1746281440332,-2512.44145058,0.000211,2]
[359724173,1746281440342,-4363.36957,0.0002111,2]
[359724175,1746281440351,-286.12114025,0.00021209,2]
[359724177,1746281440360,-619.62261932,0.00021209,2]
[359724179,1746281440369,-160.0,0.0002121,2]
[359724181,1746281440379,-7276.47724559,0.0002121,2]
[359724183,1746281440388,-841.47485993,0.0002121,2]
[359724185,1746281440397,-421.66712248,0.0002121,2]
[359724187,1746281440406,-182.16284668,0.0002121,2]
[359724189,1746281440415,-160.0,0.0002121,2]
[359724191,1746281440424,-500.0,0.0002125,2]
[359724193,1746281440433,-3016.36258365,0.00021279,5]
[359724195,1746281440442,-842.74,0.00021321,2]
[359724197,1746281440452,-420.0,0.00021394,2]
[359724199,1746281440461,-500.0,0.00021539,2]
[359724201,1746281440470,-842.74,0.00021595,2]
[359724203,1746281440479,-180.7931266,0.00021667,2]
[359724205,1746281440489,-207.4,0.00021667,2]
[359724207,1746281440498,-1000.0,0.00021818,2]
[359724209,1746281440507,-250.0,0.00021818,2]
[359724211,1746281440517,-842.74,0.00021869,2]
[359724213,1746281440526,-160.0,0.00021917,2]
[359724215,1746281440535,-478.35473821,0.00021917,2]
[359724218,1746281440554,-500.0,0.00021918,2]
[359724220,1746281440564,-544.84673917,0.00021918,2]
[359724222,1746281440574,-3016.36258365,0.00021969,6]
[359724224,1746281440584,-500.0,0.00022124,2]
[359724226,1746281440594,-842.74,0.00022143,2]
[359724228,1746281440603,-842.74,0.00022417,2]
[359724230,1746281440613,-3016.36258365,0.00022659,7]
[359724232,1746281440622,-842.74,0.00022691,2]
[359724234,1746281440632,-842.74,0.00022965,2]
[359724236,1746281440641,-215.0738,0.00023036,2]
[359724238,1746281440650,-842.74,0.00023239,2]
[359724240,1746281440660,-500.0,0.00023273,2]
[359724242,1746281440670,-500.0,0.00023273,2]
[359724244,1746281440680,-41950.83377583,0.00023277,2]
[359724247,1746281440690,-152.98336857,0.00023287,2]
[359724249,1746281440700,-839.32233778,0.00023296,2]
[359724251,1746281440709,-287.0,0.00023304,2]
[359724253,1746281440719,-800.0,0.0002331,2]
[359724254,1746281440728,-800.0,0.00023343,2]
[359724256,1746281440738,-3016.36258365,0.00023348,9]
[359724259,1746281440747,-800.0,0.00023372,2]
[359724261,1746281440757,-243.81176389,0.00023489,2]
[359724263,1746281440767,-842.74,0.00023513,2]
[359724265,1746281440778,-403.0,0.00023519,2]
[359724286,1746281440966,-150.0,0.00023565,2]
[359724288,1746281440976,-150.0,0.000237,2]
[359724290,1746281440986,-842.74,0.00023787,2]
[359724292,1746281440996,-151.0,0.00024,7]
[359724294,1746281441005,-433.439744,0.00024,5]
[359724296,1746281441015,-3016.36258365,0.00024038,10]
[359724298,1746281441024,-291.81510874,0.00024059,2]
[359724300,1746281441034,-842.74,0.00024061,2]
[359724302,1746281441044,-619.62261932,0.00024211,2]
[359724305,1746281441055,-151.0,0.000243,5]
[359724307,1746281441065,-842.74,0.00024335,2]
[359724309,1746281441075,-215.0738,0.00024405,2]
[359724311,1746281441085,-151.0,0.000245,8]
[359724313,1746281441094,-842.87137835,0.00024609,2]
[359724315,1746281441107,-151.0,0.000247,6]
[359724317,1746281441117,-150.0,0.000247,2]
[359724319,1746281441131,-3016.36258365,0.00024728,11]
[359724321,1746281441141,-151.0,0.000248,7]
[359724323,1746281441150,-503.64546199,0.000248,9]
[359724325,1746281441159,-506.18393734,0.000248,9]
[359724327,1746281441170,-15982.3491696,0.000248,2]
[359725804,1746281673632,11378.1363187,0.00017535,2]
[359725809,1746281825088,24900.0,0.00017521,2]
[359725811,1746281934093,2529.8259118,0.00017488,2]
[359725812,1746282025646,284.6733967,0.00017426,2]
[359725815,1746282115705,192.1785835,0.0001738,2]
[359725828,1746282424112,-1392.56605701,0.0001807,2]
[359725829,1746282424137,-1000.0,0.0001817,2]
[359725830,1746282424160,-200.06366001,0.00018208,2]
[359725831,1746282424182,-355.16904429,0.0001827,2]
[359725832,1746282424205,-300.0,0.00018302,2]
[359725833,1746282424227,-202.0,0.00018303,2]
[359725834,1746282424250,-300.0,0.00018303,2]
[359725835,1746282424274,-1122.0,0.00018303,2]
[359725836,1746282424297,-300.0,0.00018303,2]
[359725837,1746282424321,-400.0,0.00018304,2]
[359725838,1746282424345,-400.0,0.00018304,2]
[359725839,1746282424368,-400.0,0.00018304,2]
[359725840,1746282424391,-400.0,0.00018304,2]
[359725841,1746282424412,-400.0,0.00018304,2]
[359725842,1746282424434,-400.0,0.00018304,2]
[359725843,1746282424457,-400.0,0.00018304,2]
[359725844,1746282424478,-400.0,0.00018304,2]
[359725845,1746282424500,-400.0,0.00018304,2]
[359725846,1746282424523,-400.0,0.00018304,2]
[359725847,1746282424545,-400.0,0.00018304,2]
[359725848,1746282424569,-400.0,0.00018304,2]
[359725849,1746282424591,-460.72526636,0.00018304,2]
[359725850,1746282424612,-1584.69924894,0.00018304,2]
[359725851,1746282424635,-519.40011694,0.00018308,2]
[359725852,1746282424657,-400.0,0.00018308,2]
[359725853,1746282424679,-387.26413711,0.00018442,2]
[359725854,1746282424704,-500.0,0.0001854,2]
[359725855,1746282424737,-500.0,0.0001854,2]
[359725856,1746282424951,-500.0,0.0001854,2]
[359725857,1746282424976,-392.09121329,0.0001854,2]
[359725858,1746282425009,-500.0,0.0001854,2]
[359725859,1746282425032,-500.0,0.0001854,2]
[359725860,1746282425062,-500.0,0.0001854,2]
[359725861,1746282425094,-500.0,0.0001854,2]
[359725862,1746282425125,-500.0,0.0001854,2]
[359725863,1746282425147,-500.0,0.0001854,2]
[359725864,1746282425178,-500.0,0.0001854,2]
[359725865,1746282425201,-500.0,0.0001854,2]
[359725866,1746282425227,-500.0,0.0001854,2]
[359725867,1746282425260,-500.0,0.0001854,2]
[359725868,1746282425283,-500.0,0.0001854,2]
[359725869,1746282425315,-500.0,0.0001854,2]
[359725870,1746282425348,-500.0,0.0001854,2]
[359725871,1746282425380,-500.0,0.0001854,2]
[359725872,1746282425412,-500.0,0.0001854,2]
[359725873,1746282425445,-500.0,0.0001854,2]
[359725874,1746282425477,-500.0,0.0001854,2]
[359725875,1746282425510,-500.0,0.0001854,2]
[359725876,1746282425543,-411.52425913,0.0001854,2]
[359725877,1746282425577,-500.0,0.0001854,2]
[359725878,1746282425609,-500.0,0.0001854,2]
[359725879,1746282425633,-400.0,0.00018541,2]
[359725880,1746282425659,-400.0,0.00018541,2]
[359725881,1746282425682,-400.0,0.00018541,2]
[359725882,1746282425704,-400.0,0.00018541,2]
[359725883,1746282425728,-400.0,0.00018541,2]
[359725884,1746282425749,-400.0,0.00018541,2]
[359725885,1746282425772,-400.0,0.00018541,2]
[359725886,1746282425793,-400.0,0.00018541,2]
[359725887,1746282425815,-400.0,0.00018541,2]
[359725888,1746282425836,-400.0,0.00018541,2]
[359725889,1746282425858,-372.49699692,0.00018541,2]
[359725891,1746282431149,-27.50300308,0.00018541,2]
[359725892,1746282431170,-222.85513613,0.00018541,2]
[359725895,1746282454189,-177.14486387,0.00018541,2]
[359725896,1746282454210,-400.0,0.00018541,2]
[359725897,1746282454234,-400.0,0.00018541,2]
[359725898,1746282454258,-400.0,0.00018541,2]
[359725899,1746282454281,-400.0,0.00018541,2]
[359725900,1746282454304,-400.0,0.00018541,2]
[359725901,1746282454326,-668.812469,0.00018542,2]
[359725902,1746282497322,2098.54762459,0.000125,2]
[359725905,1746282506597,825.64488063,0.000176,2]
[359725909,1746282521732,1000.0,0.0001,2]
[359725911,1746282525667,1733.14598539,0.00015,2]
[359725913,1746282548141,-839.74599181,0.00018,2]
[359725914,1746282548163,-400.0,0.0001854,2]
[359725915,1746282548184,-400.0,0.0001854,2]
[359725916,1746282548206,-400.0,0.00018541,2]
[359725917,1746282548228,-400.0,0.00018541,2]
[359725918,1746282548250,-400.0,0.00018541,2]
[359725919,1746282548272,-400.0,0.00018541,2]
[359725920,1746282548294,-400.0,0.00018541,2]
[359725921,1746282548316,-6418.86946251,0.00018542,2]
[359725922,1746282548337,-400.0,0.00018542,2]
[359725923,1746282548359,-400.0,0.00018542,2]
[359725924,1746282548380,-400.0,0.00018542,2]
[359725925,1746282548401,-400.0,0.00018542,2]
[359725926,1746282548425,-400.0,0.00018542,2]
[359725927,1746282548447,-400.0,0.00018542,2]
[359725928,1746282548469,-400.0,0.00018542,2]
[359725929,1746282548489,-400.0,0.00018542,2]
[359725930,1746282548512,-400.0,0.00018542,2]
[359725931,1746282548534,-400.0,0.00018542,2]
[359725933,1746282548698,-400.0,0.00018542,2]
[359725934,1746282548728,-400.0,0.00018542,2]
[359725935,1746282548752,-400.0,0.00018542,2]
[359725936,1746282548776,-400.0,0.00018542,2]
[359725937,1746282548798,-400.0,0.00018542,2]
[359725938,1746282548820,-400.0,0.00018542,2]
[359725939,1746282548842,-400.0,0.00018542,2]
[359725940,1746282548864,-400.0,0.00018542,2]
[359725941,1746282548886,-400.0,0.00018542,2]
[359725942,1746282548909,-400.0,0.00018543,2]
[359725943,1746282548931,-400.0,0.00018543,2]
[359725944,1746282548952,-400.0,0.00018543,2]
[359725945,1746282548973,-400.0,0.00018543,2]
[359725946,1746282548994,-400.0,0.00018543,2]
[359725947,1746282549015,-412.23147505,0.00018543,2]
[359725948,1746282549036,-400.0,0.00018543,2]
[359725949,1746282549057,-400.0,0.00018543,2]
[359725950,1746282549080,-400.0,0.00018543,2]
[359725951,1746282549103,-400.0,0.00018543,2]
[359725952,1746282549126,-488.01013481,0.00018577,2]
[359725953,1746282549156,-251.27208594,0.00018577,2]
[359725954,1746282565139,-248.72791406,0.00018577,2]
[359725955,1746282565160,-400.0,0.00018578,2]
[359725956,1746282565181,-400.0,0.00018578,2]
[359725957,1746282565202,-400.0,0.00018578,2]
[359725958,1746282565222,-400.0,0.00018578,2]
[359725959,1746282565243,-400.0,0.00018578,2]
[359725960,1746282565264,-400.0,0.00018578,2]
[359725961,1746282565284,-400.0,0.00018578,2]
[359725962,1746282565305,-400.0,0.00018578,2]
[359725963,1746282565326,-400.0,0.00018578,2]
[359725964,1746282565347,-400.0,0.00018582,2]
[359725965,1746282565367,-625.30322212,0.00018715,2]
[359725966,1746282565388,-400.0,0.00018814,2]
[359725967,1746282565410,-400.0,0.00018814,2]
[359725968,1746282565434,-400.0,0.00018815,2]
[359725969,1746282565454,-400.0,0.00018815,2]
[359725970,1746282565478,-400.0,0.00018815,2]
[359725971,1746282565500,-225.12022382,0.00018815,2]
[359725977,1746282594685,413.64508975,0.000179,2]
[359726032,1746282632238,-1200.0,0.00018539,2]
[359726033,1746282632248,-300.0,0.00018539,2]
[359726034,1746282632258,-400.0,0.0001854,2]
[359726035,1746282632267,-400.0,0.0001854,2]
[359726036,1746282632277,-400.0,0.0001854,2]
[359726037,1746282632286,-400.0,0.0001854,2]
[359726038,1746282632296,-400.0,0.0001854,2]
[359726039,1746282632305,-400.0,0.0001854,2]
[359726040,1746282632314,-496.97,0.0001854,2]
[359726041,1746282632323,-400.0,0.00018541,2]
[359726042,1746282632333,-400.0,0.00018541,2]
[359726043,1746282632342,-400.0,0.00018541,2]
[359726044,1746282632351,-400.0,0.00018541,2]
[359726045,1746282632360,-400.0,0.00018541,2]
[359726046,1746282632370,-400.0,0.00018542,2]
[359726047,1746282632379,-400.0,0.00018542,2]
[359726048,1746282632388,-400.0,0.00018814,2]
[359726049,1746282632397,-410.46,0.00018814,2]
[359726050,1746282632407,-400.0,0.00018814,2]
[359726051,1746282632416,-400.0,0.00018814,2]
[359726052,1746282632425,-400.0,0.00018814,2]
[359726053,1746282632435,-400.0,0.00018814,2]
[359726054,1746282632444,-400.0,0.00018815,2]
[359726055,1746282632453,-400.0,0.00018815,2]
[359726056,1746282632462,-400.0,0.00018815,2]
[359726057,1746282632472,-400.0,0.00018815,2]
[359726058,1746282632481,-400.0,0.00018815,2]
[359726059,1746282632490,-400.0,0.00018815,2]
[359726060,1746282632499,-400.0,0.00018815,2]
[359726061,1746282632509,-400.0,0.00018815,2]
[359726062,1746282632518,-400.0,0.00018815,2]
[359726063,1746282632528,-400.0,0.00018815,2]
[359726064,1746282632538,-400.0,0.00018815,2]
[359726065,1746282632547,-400.0,0.00018815,2]
[359726066,1746282632557,-400.0,0.00018815,2]
[359726067,1746282632567,-400.0,0.00018815,2]
[359726068,1746282632576,-400.0,0.00018815,2]
[359726069,1746282632585,-400.0,0.00018816,2]
[359726070,1746282632595,-400.0,0.00018816,2]
[359726071,1746282632604,-400.0,0.00018816,2]
[359726072,1746282632613,-400.0,0.00018816,2]
[359726073,1746282632623,-400.0,0.00018816,2]
[359726074,1746282632632,-400.0,0.00018816,2]
[359726075,1746282632642,-487.62,0.00018816,2]
[359726076,1746282632653,-400.0,0.00018816,2]
[359726077,1746282632662,-400.0,0.00018816,2]
[359726078,1746282632671,-400.0,0.00018816,2]
[359726079,1746282632681,-400.0,0.00018816,2]
[359726080,1746282632690,-400.0,0.00018817,2]
[359726081,1746282632699,-400.0,0.00018852,2]
[359726082,1746282632709,-179.2371346,0.00018852,2]
[359726083,1746282632718,-222.89338378,0.00018852,2]
[359726084,1746282632727,-400.0,0.00018852,2]
[359726085,1746282632737,-400.0,0.00018852,2]
[359726086,1746282632746,-865.26924517,0.000189,2]
[359726087,1746282632756,-994.36822103,0.00018989,2]
[359726088,1746282632765,-152.0,0.00019028,2]
[359726089,1746282632775,-512.78,0.00019088,2]
[359726090,1746282632784,-400.0,0.00019088,2]
[359726091,1746282632793,-400.0,0.00019088,2]
[359726092,1746282632805,-174.87977618,0.00019088,2]
[359726093,1746282632815,-452.87,0.00019088,2]
[359726094,1746282632826,-400.0,0.00019088,2]
[359726095,1746282632837,-212.09,0.00019089,2]
[359726096,1746282632846,-400.0,0.00019089,2]
[359726097,1746282632856,-515.79,0.00019089,2]
[359726098,1746282632867,-400.0,0.00019089,2]
[359726099,1746282632876,-400.0,0.00019089,2]
[359726100,1746282632885,-400.0,0.00019089,2]
[359726101,1746282632894,-400.0,0.00019089,2]
[359726102,1746282632903,-400.0,0.00019089,2]
[359726103,1746282632912,-400.0,0.00019089,2]
[359726104,1746282632921,-400.0,0.00019089,2]
[359726105,1746282632930,-400.0,0.00019089,2]
[359726106,1746282632939,-400.0,0.00019089,2]
[359726107,1746282632953,-400.0,0.00019089,2]
[359726108,1746282632963,-400.0,0.00019089,2]
[359726109,1746282633149,-400.0,0.0001909,2]
[359726110,1746282633159,-400.0,0.0001909,2]
[359726111,1746282633169,-400.0,0.0001909,2]
[359726112,1746282633179,-400.0,0.0001909,2]
[359726113,1746282633189,-400.0,0.0001909,2]
[359726114,1746282633198,-400.0,0.00019091,2]
[359726115,1746282633207,-400.0,0.00019126,2]
[359726116,1746282633217,-400.0,0.00019126,2]
[359726117,1746282633226,-400.0,0.00019126,2]
[359726118,1746282633236,-3962.47159077,0.00019166,2]
[359726119,1746282633245,-400.0,0.00019362,2]
[359726120,1746282633255,-400.0,0.00019362,2]
[359726121,1746282633264,-400.0,0.00019362,2]